[Event "Early-Titled-Tuesday-Blitz-July-09-2024"]
[Site "Chess.com"]
[Date "2024.07.09"]
[Round "9"]
[White "jumpingknight20"]
[Black "nrvisakh"]
[Result "1-0"]
[WhiteElo "2824"]
[BlackElo "2923"]
[TimeControl "180+1"]
[EndTime "9:43:01 PDT"]
[Termination "jumpingknight20 won by resignation"]

1. e4 {[%clk 0:03:00.9]} 1... e6 {[%clk 0:03:00]} 2. d4 {[%clk 0:03:00.2]} 2...
d5 {[%clk 0:03:00.6]} 3. Nd2 {[%clk 0:03:00.1]} 3... c5 {[%clk 0:02:58.6]} 4.
exd5 {[%clk 0:02:59.7]} 4... Qxd5 {[%clk 0:02:58]} 5. Ngf3 {[%clk 0:03:00.1]}
5... cxd4 {[%clk 0:02:56.4]} 6. Bc4 {[%clk 0:03:00.3]} 6... Qd6 {[%clk
0:02:56.8]} 7. O-O {[%clk 0:03:00.6]} 7... Nf6 {[%clk 0:02:56.6]} 8. Nb3 {[%clk
0:03:01]} 8... Nc6 {[%clk 0:02:56]} 9. Nbxd4 {[%clk 0:03:01.4]} 9... Nxd4 {[%clk
0:02:56.3]} 10. Nxd4 {[%clk 0:03:01.4]} 10... Be7 {[%clk 0:02:56.5]} 11. c3
{[%clk 0:03:01]} 11... O-O {[%clk 0:02:50.2]} 12. Bb3 {[%clk 0:02:53.1]} 12...
Qc7 {[%clk 0:02:34.5]} 13. Qf3 {[%clk 0:02:47.5]} 13... Bd7 {[%clk 0:02:30.9]}
14. Bf4 {[%clk 0:02:29.8]} 14... e5 {[%clk 0:01:51.7]} 15. Bg3 {[%clk
0:02:29.8]} 15... Bg4 {[%clk 0:01:51.6]} 16. Qd3 {[%clk 0:02:20]} 16... Rad8
{[%clk 0:01:51.4]} 17. Rfe1 {[%clk 0:02:08.8]} 17... Bd6 {[%clk 0:01:49.6]} 18.
Nb5 {[%clk 0:02:06.7]} 18... Qb6 {[%clk 0:01:48.5]} 19. Nxd6 {[%clk 0:02:03]}
19... Rxd6 {[%clk 0:01:49.4]} 20. Qc2 {[%clk 0:01:17.3]} 20... Rfd8 {[%clk
0:01:44.3]} 21. Rxe5 {[%clk 0:01:13.8]} 21... Rd2 {[%clk 0:01:28.8]} 22. Qc1
{[%clk 0:01:13.9]} 22... Nh5 {[%clk 0:01:24.2]} 23. Qxd2 {[%clk 0:01:12.6]} 1-0

[Event "Early-Titled-Tuesday-Blitz-July-09-2024"]
[Site "Chess.com"]
[Date "2024.07.09"]
[Round "9"]
[White "Boorchess"]
[Black "Nekoo04"]
[Result "0-1"]
[WhiteElo "2540"]
[BlackElo "2397"]
[TimeControl "180+1"]
[EndTime "9:43:20 PDT"]
[Termination "Nekoo04 won by resignation"]

1. d4 {[%clk 0:03:00.9]} 1... Nf6 {[%clk 0:02:58.8]} 2. c4 {[%clk 0:03:00.8]}
2... g6 {[%clk 0:02:59]} 3. f3 {[%clk 0:03:00.2]} 3... d5 {[%clk 0:02:55.3]} 4.
cxd5 {[%clk 0:02:59.8]} 4... Nxd5 {[%clk 0:02:54.9]} 5. e4 {[%clk 0:02:59.9]}
5... Nb6 {[%clk 0:02:55.5]} 6. Be3 {[%clk 0:02:59.3]} 6... Bg7 {[%clk
0:02:56.2]} 7. Qd2 {[%clk 0:02:57.9]} 7... O-O {[%clk 0:02:56.7]} 8. Nc3 {[%clk
0:02:57.3]} 8... Nc6 {[%clk 0:02:55.4]} 9. O-O-O {[%clk 0:02:56.7]} 9... Na5
{[%clk 0:02:50.7]} 10. b3 {[%clk 0:02:50.8]} 10... Bd7 {[%clk 0:02:46]} 11. h4
{[%clk 0:02:47.2]} 11... h5 {[%clk 0:02:44.8]} 12. Nh3 {[%clk 0:02:40.5]} 12...
Rc8 {[%clk 0:02:43.2]} 13. Bh6 {[%clk 0:02:18.4]} 13... c5 {[%clk 0:02:39.4]}
14. d5 {[%clk 0:02:08.8]} 14... c4 {[%clk 0:02:36.7]} 15. b4 {[%clk 0:02:01.9]}
15... Nb3+ {[%clk 0:02:31.4]} 16. axb3 {[%clk 0:01:59.5]} 16... Bxc3 {[%clk
0:02:32]} 17. Qf4 {[%clk 0:01:18.8]} 17... cxb3 {[%clk 0:02:31.1]} 18. Kb1
{[%clk 0:01:18.8]} 18... Na4 {[%clk 0:02:25]} 19. Bxf8 {[%clk 0:01:14.6]} 19...
Qxf8 {[%clk 0:02:25.9]} 20. Bd3 {[%clk 0:01:02.2]} 20... Bf6 {[%clk 0:02:23.7]}
21. e5 {[%clk 0:01:00.6]} 21... Bg7 {[%clk 0:02:21.2]} 22. Rc1 {[%clk
0:00:57.9]} 22... Nc3+ {[%clk 0:02:20.2]} 23. Kb2 {[%clk 0:00:57.6]} 23... Nxd5
{[%clk 0:02:19.5]} 24. Qd4 {[%clk 0:00:57.6]} 24... Bc6 {[%clk 0:02:14.2]} 25.
b5 {[%clk 0:00:56.4]} 25... Nb4 {[%clk 0:01:48.8]} 26. bxc6 {[%clk 0:00:38.4]}
26... Bxe5 {[%clk 0:01:47.7]} 0-1

[Event "Early-Titled-Tuesday-Blitz-July-09-2024"]
[Site "Chess.com"]
[Date "2024.07.09"]
[Round "9"]
[White "GM_Huschenbeth"]
[Black "Chessbard1972"]
[Result "1-0"]
[WhiteElo "2523"]
[BlackElo "2231"]
[TimeControl "180+1"]
[EndTime "9:43:21 PDT"]
[Termination "GM_Huschenbeth won by resignation"]

1. e4 {[%clk 0:03:00.9]} 1... e5 {[%clk 0:02:59.6]} 2. Nf3 {[%clk 0:03:00.9]}
2... Nf6 {[%clk 0:02:59.1]} 3. d4 {[%clk 0:02:59.3]} 3... d5 {[%clk 0:02:51.6]}
4. Nxe5 {[%clk 0:02:48.5]} 4... Nxe4 {[%clk 0:02:50.9]} 5. Bd3 {[%clk
0:02:46.4]} 5... Be7 {[%clk 0:02:46.9]} 6. O-O {[%clk 0:02:41.8]} 6... O-O
{[%clk 0:02:45.5]} 7. c4 {[%clk 0:02:41.5]} 7... Nf6 {[%clk 0:02:39.3]} 8. Nc3
{[%clk 0:02:35.4]} 8... Be6 {[%clk 0:02:34]} 9. cxd5 {[%clk 0:02:18.8]} 9...
Nxd5 {[%clk 0:02:32.4]} 10. Re1 {[%clk 0:02:18.4]} 10... Nd7 {[%clk 0:02:21.7]}
11. Nxd5 {[%clk 0:02:17.2]} 11... Bxd5 {[%clk 0:02:20.7]} 12. Qh5 {[%clk
0:02:15.8]} 12... Nf6 {[%clk 0:02:19.4]} 13. Qh4 {[%clk 0:02:08.1]} 13... g6
{[%clk 0:02:08]} 14. Bg5 {[%clk 0:01:57.9]} 14... Re8 {[%clk 0:02:04.5]} 15. Ng4
{[%clk 0:01:30.3]} 15... Ne4 {[%clk 0:01:43.9]} 16. Bxe7 {[%clk 0:01:18.2]}
16... Rxe7 {[%clk 0:01:36.9]} 17. Bxe4 {[%clk 0:01:14.2]} 17... Bxe4 {[%clk
0:01:15.5]} 18. Nf6+ {[%clk 0:01:02.3]} 18... Kg7 {[%clk 0:01:13.9]} 19. Nxe4
{[%clk 0:01:02.4]} 19... Re6 {[%clk 0:01:07.6]} 20. Ng5 {[%clk 0:00:57.2]} 20...
Rxe1+ {[%clk 0:01:05.4]} 21. Rxe1 {[%clk 0:00:58.1]} 21... h6 {[%clk 0:01:05.2]}
22. Nf3 {[%clk 0:00:57.4]} 1-0

[Event "Early-Titled-Tuesday-Blitz-July-09-2024"]
[Site "Chess.com"]
[Date "2024.07.09"]
[Round "9"]
[White "AlainBruxelles"]
[Black "DFeco"]
[Result "0-1"]
[WhiteElo "2255"]
[BlackElo "2431"]
[TimeControl "180+1"]
[EndTime "9:43:28 PDT"]
[Termination "DFeco won by resignation"]

1. d4 {[%clk 0:03:00.9]} 1... d5 {[%clk 0:02:59.4]} 2. Nf3 {[%clk 0:03:00]} 2...
Nf6 {[%clk 0:02:59.1]} 3. c4 {[%clk 0:02:59.9]} 3... c6 {[%clk 0:02:58.8]} 4.
Nc3 {[%clk 0:02:56.6]} 4... a6 {[%clk 0:02:59]} 5. cxd5 {[%clk 0:02:54.4]} 5...
cxd5 {[%clk 0:02:58.7]} 6. Bg5 {[%clk 0:02:53.7]} 6... Ne4 {[%clk 0:02:53.2]} 7.
Bf4 {[%clk 0:02:50.9]} 7... Nc6 {[%clk 0:02:51.5]} 8. e3 {[%clk 0:02:50.9]} 8...
Nxc3 {[%clk 0:02:47.6]} 9. bxc3 {[%clk 0:02:50.4]} 9... Bg4 {[%clk 0:02:46.2]}
10. h3 {[%clk 0:02:48.7]} 10... Bxf3 {[%clk 0:02:45.1]} 11. gxf3 {[%clk
0:02:43.2]} 11... e6 {[%clk 0:02:45.1]} 12. Bd3 {[%clk 0:02:39.3]} 12... Bd6
{[%clk 0:02:44.8]} 13. Bxd6 {[%clk 0:02:34.8]} 13... Qxd6 {[%clk 0:02:45.7]} 14.
Rg1 {[%clk 0:02:34.2]} 14... O-O {[%clk 0:02:44.1]} 15. e4 {[%clk 0:02:23.4]}
15... Qf4 {[%clk 0:02:42.5]} 16. e5 {[%clk 0:02:17.2]} 16... f6 {[%clk
0:02:34.6]} 17. Rg4 {[%clk 0:02:15]} 17... Qh6 {[%clk 0:02:28]} 18. exf6 {[%clk
0:02:03.4]} 18... Rxf6 {[%clk 0:02:27]} 19. h4 {[%clk 0:01:47.4]} 19... Raf8
{[%clk 0:02:25.2]} 20. Be2 {[%clk 0:01:47.8]} 20... Rf4 {[%clk 0:02:20.6]} 21.
Qd2 {[%clk 0:01:34.8]} 21... Qf6 {[%clk 0:01:55.9]} 22. Rxf4 {[%clk 0:01:25.2]}
22... Qxf4 {[%clk 0:01:55.7]} 23. Qxf4 {[%clk 0:01:25.9]} 23... Rxf4 {[%clk
0:01:55.5]} 24. Rb1 {[%clk 0:01:26.6]} 24... Na5 {[%clk 0:01:50.4]} 25. Rb6
{[%clk 0:01:23.1]} 25... Kf7 {[%clk 0:01:46.6]} 26. Kd2 {[%clk 0:01:19.3]} 26...
Rxh4 {[%clk 0:01:46.1]} 27. Ke3 {[%clk 0:01:16.3]} 27... Rh1 {[%clk 0:01:37.9]}
28. Rb2 {[%clk 0:01:12.2]} 28... Ke7 {[%clk 0:01:29.4]} 29. Bd3 {[%clk
0:01:11.7]} 29... h5 {[%clk 0:01:28.2]} 30. Kf4 {[%clk 0:01:11.8]} 30... Rg1
{[%clk 0:01:25.4]} 31. Re2 {[%clk 0:01:07.4]} 31... g5+ {[%clk 0:01:24.7]} 32.
Ke3 {[%clk 0:01:06.5]} 32... h4 {[%clk 0:01:24.9]} 33. Kd2 {[%clk 0:01:05.2]}
33... h3 {[%clk 0:01:24.9]} 34. Bf5 {[%clk 0:01:05.5]} 34... h2 {[%clk
0:01:21.1]} 35. Rxe6+ {[%clk 0:01:04.5]} 35... Kf7 {[%clk 0:01:21.4]} 0-1

[Event "Early-Titled-Tuesday-Blitz-July-09-2024"]
[Site "Chess.com"]
[Date "2024.07.09"]
[Round "9"]
[White "Navyblue1"]
[Black "Resignify"]
[Result "0-1"]
[WhiteElo "2116"]
[BlackElo "2255"]
[TimeControl "180+1"]
[EndTime "9:43:38 PDT"]
[Termination "Resignify won by resignation"]

1. d4 {[%clk 0:03:00.9]} 1... Nf6 {[%clk 0:02:59.5]} 2. c4 {[%clk 0:03:01.1]}
2... e6 {[%clk 0:02:59.4]} 3. Nf3 {[%clk 0:02:59]} 3... Bb4+ {[%clk 0:02:58.2]}
4. Bd2 {[%clk 0:02:55]} 4... Qe7 {[%clk 0:02:56.8]} 5. g3 {[%clk 0:02:52.7]}
5... Ne4 {[%clk 0:02:54.6]} 6. Bg2 {[%clk 0:02:45.2]} 6... O-O {[%clk
0:02:52.1]} 7. O-O {[%clk 0:02:43.4]} 7... Nxd2 {[%clk 0:02:50.1]} 8. Nbxd2
{[%clk 0:02:44.3]} 8... Bxd2 {[%clk 0:02:50.3]} 9. Qxd2 {[%clk 0:02:43.8]} 9...
d6 {[%clk 0:02:51.2]} 10. e4 {[%clk 0:02:43]} 10... e5 {[%clk 0:02:50.5]} 11.
Rfe1 {[%clk 0:02:41]} 11... Bg4 {[%clk 0:02:44.3]} 12. Qc3 {[%clk 0:02:37.4]}
12... Bxf3 {[%clk 0:02:38.3]} 13. Bxf3 {[%clk 0:02:38.3]} 13... Nc6 {[%clk
0:02:38.2]} 14. d5 {[%clk 0:02:36]} 14... Nd4 {[%clk 0:02:38]} 15. Bg2 {[%clk
0:02:35.3]} 15... c5 {[%clk 0:02:21.7]} 16. f4 {[%clk 0:02:26.4]} 16... f6
{[%clk 0:02:13]} 17. Re3 {[%clk 0:02:24]} 17... b5 {[%clk 0:01:59]} 18. b3
{[%clk 0:02:20.3]} 18... bxc4 {[%clk 0:01:55.9]} 19. bxc4 {[%clk 0:02:21.2]}
19... Rab8 {[%clk 0:01:49.2]} 20. f5 {[%clk 0:02:20.2]} 20... Rb4 {[%clk
0:01:44.9]} 21. g4 {[%clk 0:02:18.9]} 21... Rfb8 {[%clk 0:01:43.6]} 22. Bf1
{[%clk 0:02:18.5]} 22... g6 {[%clk 0:01:17]} 23. fxg6 {[%clk 0:02:15.3]} 23...
hxg6 {[%clk 0:01:15.3]} 24. Rh3 {[%clk 0:02:14]} 24... Rb1 {[%clk 0:01:09.5]}
25. Rxb1 {[%clk 0:02:11.5]} 25... Rxb1 {[%clk 0:01:10.4]} 26. Qe3 {[%clk
0:02:10]} 26... Qd7 {[%clk 0:00:44]} 27. g5 {[%clk 0:01:53.2]} 27... Qg4+ {[%clk
0:00:33.5]} 28. Kf2 {[%clk 0:01:41.9]} 28... Rb2+ {[%clk 0:00:17.5]} 0-1

[Event "Early-Titled-Tuesday-Blitz-July-09-2024"]
[Site "Chess.com"]
[Date "2024.07.09"]
[Round "9"]
[White "Stanbad1"]
[Black "SuperPower2011"]
[Result "0-1"]
[WhiteElo "2614"]
[BlackElo "2726"]
[TimeControl "180+1"]
[EndTime "9:43:39 PDT"]
[Termination "SuperPower2011 won by resignation"]

1. d4 {[%clk 0:03:00.9]} 1... Nf6 {[%clk 0:02:59]} 2. Nc3 {[%clk 0:02:59.9]}
2... d5 {[%clk 0:02:58.6]} 3. Bf4 {[%clk 0:02:59.4]} 3... c5 {[%clk 0:02:58.8]}
4. e4 {[%clk 0:02:59.2]} 4... Nxe4 {[%clk 0:02:50.1]} 5. Nxe4 {[%clk 0:02:58.8]}
5... dxe4 {[%clk 0:02:51]} 6. dxc5 {[%clk 0:02:59.4]} 6... Qa5+ {[%clk 0:02:51]}
7. c3 {[%clk 0:02:59.4]} 7... Qxc5 {[%clk 0:02:51.9]} 8. Qa4+ {[%clk 0:02:59.5]}
8... Nc6 {[%clk 0:02:52.6]} 9. Qxe4 {[%clk 0:02:58.9]} 9... g6 {[%clk
0:02:53.3]} 10. Nf3 {[%clk 0:02:58.1]} 10... Bg7 {[%clk 0:02:53.2]} 11. Rd1
{[%clk 0:02:58.3]} 11... O-O {[%clk 0:02:52.7]} 12. Be3 {[%clk 0:02:58.1]} 12...
Qa5 {[%clk 0:02:50.8]} 13. Bc4 {[%clk 0:02:57.6]} 13... Bf5 {[%clk 0:02:36.3]}
14. Qh4 {[%clk 0:02:57]} 14... Ne5 {[%clk 0:02:31.9]} 15. Nxe5 {[%clk
0:02:55.9]} 15... Qxe5 {[%clk 0:02:32.4]} 16. O-O {[%clk 0:02:55.5]} 16... Bf6
{[%clk 0:02:30.8]} 17. Bd4 {[%clk 0:02:48.8]} 17... Bxh4 {[%clk 0:02:04.7]} 18.
Bxe5 {[%clk 0:02:47.9]} 18... Rfd8 {[%clk 0:02:04.6]} 19. Rfe1 {[%clk
0:02:47.2]} 19... Kf8 {[%clk 0:02:01.6]} 20. g3 {[%clk 0:02:44.3]} 20... Bf6
{[%clk 0:02:01.2]} 21. Bxf6 {[%clk 0:02:44]} 21... exf6 {[%clk 0:02:02.1]} 22.
f4 {[%clk 0:02:44.2]} 22... Bc2 {[%clk 0:01:59.5]} 23. Rxd8+ {[%clk 0:02:43.3]}
23... Rxd8 {[%clk 0:01:58.9]} 24. Kf2 {[%clk 0:02:40.6]} 24... a6 {[%clk
0:01:54.6]} 25. Ke3 {[%clk 0:02:36.3]} 25... b5 {[%clk 0:01:52.9]} 26. Bb3
{[%clk 0:02:35.1]} 26... Bf5 {[%clk 0:01:46.5]} 27. Rd1 {[%clk 0:02:33.9]} 27...
Rc8 {[%clk 0:01:40.3]} 28. Rd6 {[%clk 0:02:30.3]} 28... a5 {[%clk 0:01:40]} 29.
Rxf6 {[%clk 0:02:30]} 29... Rc7 {[%clk 0:01:32.3]} 30. a4 {[%clk 0:02:20.8]}
30... bxa4 {[%clk 0:01:30.7]} 31. Bxa4 {[%clk 0:02:17.3]} 31... Be6 {[%clk
0:01:27.7]} 32. f5 {[%clk 0:02:13.9]} 32... Ke7 {[%clk 0:01:19.9]} 33. Rxe6+
{[%clk 0:01:55.8]} 33... fxe6 {[%clk 0:01:20.3]} 34. fxg6 {[%clk 0:01:56.5]}
34... hxg6 {[%clk 0:01:21.1]} 35. Bc2 {[%clk 0:01:54.5]} 35... Kf6 {[%clk
0:01:19.9]} 36. Kd2 {[%clk 0:01:52.8]} 36... g5 {[%clk 0:01:19.1]} 37. b4 {[%clk
0:01:52.6]} 37... axb4 {[%clk 0:01:18.5]} 38. cxb4 {[%clk 0:01:53.5]} 38... Ke5
{[%clk 0:01:12]} 39. Kd3 {[%clk 0:01:50]} 39... Rd7+ {[%clk 0:01:10.3]} 40. Ke3
{[%clk 0:01:48.6]} 40... Rb7 {[%clk 0:01:09.7]} 41. h4 {[%clk 0:01:47.7]} 41...
gxh4 {[%clk 0:01:10.6]} 42. gxh4 {[%clk 0:01:48.6]} 42... Rxb4 {[%clk
0:01:10.9]} 43. h5 {[%clk 0:01:49.3]} 43... Rh4 {[%clk 0:01:10.2]} 44. Bg6
{[%clk 0:01:49.8]} 44... Rh3+ {[%clk 0:01:09.1]} 45. Kf2 {[%clk 0:01:49.8]}
45... Kf4 {[%clk 0:01:09.7]} 46. Kg2 {[%clk 0:01:50.1]} 46... Rh4 {[%clk
0:01:10.3]} 47. Kf2 {[%clk 0:01:49]} 47... e5 {[%clk 0:01:10.6]} 48. Kg2 {[%clk
0:01:49.2]} 48... e4 {[%clk 0:01:10.8]} 49. Kf2 {[%clk 0:01:49.6]} 49... e3+
{[%clk 0:01:11.2]} 50. Ke2 {[%clk 0:01:50]} 50... Rh2+ {[%clk 0:01:11.8]} 51.
Ke1 {[%clk 0:01:50.4]} 51... Kf3 {[%clk 0:01:11.4]} 52. Kd1 {[%clk 0:01:50.8]}
52... e2+ {[%clk 0:01:11.7]} 53. Kd2 {[%clk 0:01:51.2]} 53... Kf2 {[%clk
0:01:12.3]} 0-1

[Event "Early-Titled-Tuesday-Blitz-July-09-2024"]
[Site "Chess.com"]
[Date "2024.07.09"]
[Round "9"]
[White "Hirna2005"]
[Black "lluiss"]
[Result "1-0"]
[WhiteElo "2415"]
[BlackElo "2188"]
[TimeControl "180+1"]
[EndTime "9:43:49 PDT"]
[Termination "Hirna2005 won on time"]

1. e4 {[%clk 0:03:00.9]} 1... c5 {[%clk 0:02:49.6]} 2. Nf3 {[%clk 0:03:00.2]}
2... d6 {[%clk 0:02:48.7]} 3. c3 {[%clk 0:02:59.7]} 3... Nf6 {[%clk 0:02:47.5]}
4. h3 {[%clk 0:03:00.2]} 4... Nbd7 {[%clk 0:02:43.3]} 5. Bd3 {[%clk 0:02:59.5]}
5... b6 {[%clk 0:02:29.9]} 6. O-O {[%clk 0:02:58.4]} 6... Bb7 {[%clk 0:02:29.8]}
7. Re1 {[%clk 0:02:58.7]} 7... e5 {[%clk 0:02:29.8]} 8. Bc2 {[%clk 0:02:55.4]}
8... Be7 {[%clk 0:02:29.9]} 9. d4 {[%clk 0:02:55.2]} 9... exd4 {[%clk
0:02:30.1]} 10. cxd4 {[%clk 0:02:55.2]} 10... O-O {[%clk 0:02:30.6]} 11. Nc3
{[%clk 0:02:54.8]} 11... Re8 {[%clk 0:02:27.1]} 12. e5 {[%clk 0:02:53.8]} 12...
Nd5 {[%clk 0:01:52.7]} 13. Qd3 {[%clk 0:02:42.1]} 13... g6 {[%clk 0:01:37.1]}
14. exd6 {[%clk 0:02:38.2]} 14... Bxd6 {[%clk 0:00:50.8]} 15. Bg5 {[%clk
0:02:29.3]} 15... Rxe1+ {[%clk 0:00:35.8]} 16. Rxe1 {[%clk 0:02:28.4]} 16... Qc7
{[%clk 0:00:31.4]} 17. Nb5 {[%clk 0:02:25.7]} 17... Qc6 {[%clk 0:00:20.4]} 18.
Nxd6 {[%clk 0:02:22.2]} 18... Qxd6 {[%clk 0:00:16.4]} 19. Bb3 {[%clk 0:02:15.3]}
19... Nb4 {[%clk 0:00:13.7]} 20. Qe2 {[%clk 0:02:09.1]} 20... Bd5 {[%clk
0:00:12.3]} 21. dxc5 {[%clk 0:02:05.5]} 21... Nxc5 {[%clk 0:00:11]} 22. Bxd5
{[%clk 0:01:56.2]} 22... Qxd5 {[%clk 0:00:10.9]} 23. Bh6 {[%clk 0:01:47.8]}
23... Qc6 {[%clk 0:00:05.4]} 24. Nd4 {[%clk 0:01:42.4]} 24... Qd7 {[%clk
0:00:04.2]} 25. Qe5 {[%clk 0:01:38.9]} 25... f6 {[%clk 0:00:02.3]} 26. Qxf6
{[%clk 0:01:38.8]} 1-0

[Event "Early-Titled-Tuesday-Blitz-July-09-2024"]
[Site "Chess.com"]
[Date "2024.07.09"]
[Round "9"]
[White "dretch"]
[Black "jaskol95"]
[Result "1-0"]
[WhiteElo "2884"]
[BlackElo "2663"]
[TimeControl "180+1"]
[EndTime "9:44:00 PDT"]
[Termination "dretch won by resignation"]

1. d4 {[%clk 0:02:57.9]} 1... d5 {[%clk 0:03:00]} 2. c4 {[%clk 0:02:57.9]} 2...
e5 {[%clk 0:03:00.6]} 3. dxe5 {[%clk 0:02:57.3]} 3... d4 {[%clk 0:03:01.5]} 4.
Nf3 {[%clk 0:02:57.7]} 4... Nc6 {[%clk 0:03:02.2]} 5. Nbd2 {[%clk 0:02:56.9]}
5... Nge7 {[%clk 0:02:59.6]} 6. Nb3 {[%clk 0:02:57.2]} 6... Ng6 {[%clk
0:02:59.8]} 7. Nbxd4 {[%clk 0:02:54.9]} 7... Ngxe5 {[%clk 0:02:58.7]} 8. Nxe5
{[%clk 0:02:51.3]} 8... Nxe5 {[%clk 0:02:59]} 9. e3 {[%clk 0:02:49.5]} 9... Bc5
{[%clk 0:02:57.7]} 10. Be2 {[%clk 0:02:47.2]} 10... O-O {[%clk 0:02:57.7]} 11.
O-O {[%clk 0:02:47.3]} 11... c6 {[%clk 0:02:50.2]} 12. b3 {[%clk 0:02:31.4]}
12... Qh4 {[%clk 0:02:49.7]} 13. Bb2 {[%clk 0:02:09.7]} 13... Bg4 {[%clk
0:02:45.1]} 14. Qc2 {[%clk 0:02:01.1]} 14... Rfe8 {[%clk 0:02:26.4]} 15. Rad1
{[%clk 0:01:54.4]} 15... Bxe2 {[%clk 0:02:06.3]} 16. Qxe2 {[%clk 0:01:51.2]}
16... Bd6 {[%clk 0:02:04.3]} 17. h3 {[%clk 0:01:47.5]} 17... Bc7 {[%clk
0:01:48.5]} 18. f4 {[%clk 0:01:43.1]} 18... Ng6 {[%clk 0:01:45.9]} 19. Nf5
{[%clk 0:01:42]} 19... Nxf4 {[%clk 0:01:37.2]} 20. Qf3 {[%clk 0:01:15.8]} 20...
Nxh3+ {[%clk 0:01:19.4]} 21. gxh3 {[%clk 0:01:09.1]} 21... Qg5+ {[%clk
0:01:04.9]} 22. Kh1 {[%clk 0:01:08.8]} 22... Be5 {[%clk 0:00:49.6]} 23. Rg1
{[%clk 0:01:04.7]} 23... Qf6 {[%clk 0:00:42.7]} 24. Rxg7+ {[%clk 0:01:03]} 24...
Kf8 {[%clk 0:00:40.4]} 25. Ba3+ {[%clk 0:00:59.5]} 25... Bd6 {[%clk 0:00:34.3]}
26. Rxd6 {[%clk 0:00:56.9]} 26... Re7 {[%clk 0:00:34.9]} 1-0

[Event "Early-Titled-Tuesday-Blitz-July-09-2024"]
[Site "Chess.com"]
[Date "2024.07.09"]
[Round "9"]
[White "maroro07"]
[Black "malakismayil"]
[Result "0-1"]
[WhiteElo "2368"]
[BlackElo "2521"]
[TimeControl "180+1"]
[EndTime "9:44:01 PDT"]
[Termination "malakismayil won by resignation"]

1. d4 {[%clk 0:03:00.9]} 1... d5 {[%clk 0:02:59.6]} 2. c4 {[%clk 0:02:58.4]}
2... c5 {[%clk 0:02:59]} 3. cxd5 {[%clk 0:02:51.5]} 3... Qxd5 {[%clk 0:02:57.3]}
4. dxc5 {[%clk 0:02:46.8]} 4... Qxd1+ {[%clk 0:02:53.9]} 5. Kxd1 {[%clk
0:02:47.7]} 5... e5 {[%clk 0:02:54.1]} 6. Nf3 {[%clk 0:02:10.1]} 6... Nc6 {[%clk
0:02:45.5]} 7. e3 {[%clk 0:02:01.3]} 7... Bg4 {[%clk 0:02:44]} 8. Bb5 {[%clk
0:01:59.4]} 8... e4 {[%clk 0:02:43.2]} 9. Bxc6+ {[%clk 0:01:58.9]} 9... bxc6
{[%clk 0:02:43.5]} 10. Ke2 {[%clk 0:01:58.6]} 10... exf3+ {[%clk 0:02:43.2]} 11.
gxf3 {[%clk 0:01:59.5]} 11... Be6 {[%clk 0:02:41.9]} 12. b4 {[%clk 0:01:57.8]}
12... a5 {[%clk 0:02:40.5]} 13. Bd2 {[%clk 0:01:55.4]} 13... axb4 {[%clk
0:02:38.9]} 14. Bxb4 {[%clk 0:01:56.3]} 14... Nf6 {[%clk 0:02:38.5]} 15. Nc3
{[%clk 0:01:51.5]} 15... Nd5 {[%clk 0:02:32.4]} 16. Nxd5 {[%clk 0:01:50.3]}
16... Bxd5 {[%clk 0:02:33.3]} 17. a4 {[%clk 0:01:43.9]} 17... Be7 {[%clk
0:02:30.8]} 18. e4 {[%clk 0:01:38.9]} 18... Bc4+ {[%clk 0:02:29.9]} 19. Ke3
{[%clk 0:01:39.2]} 19... O-O {[%clk 0:02:24.6]} 20. Rhc1 {[%clk 0:01:35.5]}
20... Bb3 {[%clk 0:02:19.3]} 21. Ra3 {[%clk 0:01:13.8]} 21... Be6 {[%clk
0:02:15.5]} 22. f4 {[%clk 0:01:11.5]} 22... f5 {[%clk 0:02:12.2]} 23. f3 {[%clk
0:01:08.5]} 23... g5 {[%clk 0:02:09.4]} 24. fxg5 {[%clk 0:01:06.6]} 24... Bxg5+
{[%clk 0:02:10.3]} 25. f4 {[%clk 0:01:06.9]} 25... Be7 {[%clk 0:02:06.8]} 26.
Rg1+ {[%clk 0:01:06]} 26... Kf7 {[%clk 0:02:06.6]} 27. e5 {[%clk 0:01:03.9]}
27... Rab8 {[%clk 0:02:01.1]} 28. Rb1 {[%clk 0:00:20.6]} 28... Rxb4 {[%clk
0:01:59.6]} 29. Rxb4 {[%clk 0:00:21.5]} 29... Bxc5+ {[%clk 0:01:59.5]} 30. Kf3
{[%clk 0:00:17.2]} 30... Bxb4 {[%clk 0:01:59.4]} 31. Ra1 {[%clk 0:00:17.5]}
31... Bd5+ {[%clk 0:01:58.2]} 32. Ke3 {[%clk 0:00:16.9]} 32... Ra8 {[%clk
0:01:57.8]} 33. Kd4 {[%clk 0:00:11.7]} 33... Ke6 {[%clk 0:01:57.8]} 34. Rg1
{[%clk 0:00:11]} 34... Rxa4 {[%clk 0:01:56.4]} 35. Rg8 {[%clk 0:00:11.2]} 35...
Bd2+ {[%clk 0:01:52.1]} 36. Kd3 {[%clk 0:00:11.4]} 36... Bxf4 {[%clk 0:01:52.8]}
37. Re8+ {[%clk 0:00:11.1]} 37... Kf7 {[%clk 0:01:52.9]} 38. Rh8 {[%clk
0:00:09.6]} 38... Be4+ {[%clk 0:01:52.6]} 39. Kc3 {[%clk 0:00:09.4]} 39... Bxe5+
{[%clk 0:01:52.5]} 0-1

[Event "Early-Titled-Tuesday-Blitz-July-09-2024"]
[Site "Chess.com"]
[Date "2024.07.09"]
[Round "9"]
[White "AmbartsumianTyhran2012"]
[Black "KorolDimitriy75"]
[Result "1-0"]
[WhiteElo "2562"]
[BlackElo "2408"]
[TimeControl "180+1"]
[EndTime "9:44:14 PDT"]
[Termination "AmbartsumianTyhran2012 won on time"]

1. e4 {[%clk 0:02:55.5]} 1... c5 {[%clk 0:02:44.7]} 2. Bd3 {[%clk 0:02:49.3]}
2... g6 {[%clk 0:02:44.1]} 3. c3 {[%clk 0:02:48.7]} 3... Bg7 {[%clk 0:02:44.6]}
4. Bc2 {[%clk 0:02:49.3]} 4... Nc6 {[%clk 0:02:44.5]} 5. Nf3 {[%clk 0:02:49.7]}
5... e5 {[%clk 0:02:44]} 6. Na3 {[%clk 0:02:48.5]} 6... Nge7 {[%clk 0:02:43.1]}
7. d3 {[%clk 0:02:47.1]} 7... O-O {[%clk 0:02:42.3]} 8. Nc4 {[%clk 0:02:45.2]}
8... d6 {[%clk 0:02:40.7]} 9. h4 {[%clk 0:02:44.2]} 9... h6 {[%clk 0:01:53.4]}
10. h5 {[%clk 0:02:42.5]} 10... g5 {[%clk 0:01:52.8]} 11. Ne3 {[%clk 0:02:42.3]}
11... f5 {[%clk 0:01:47.4]} 12. exf5 {[%clk 0:02:39.6]} 12... Nxf5 {[%clk
0:01:48.3]} 13. Nxf5 {[%clk 0:02:31.8]} 13... Bxf5 {[%clk 0:01:49.2]} 14. Be3
{[%clk 0:02:30.4]} 14... Qd7 {[%clk 0:01:41.6]} 15. Qe2 {[%clk 0:02:15.8]} 15...
Rae8 {[%clk 0:01:30.4]} 16. O-O-O {[%clk 0:02:13.5]} 16... Nd4 {[%clk
0:01:10.9]} 17. cxd4 {[%clk 0:02:04.2]} 17... exd4 {[%clk 0:01:10.7]} 18. Bb3+
{[%clk 0:01:59.6]} 18... Kh8 {[%clk 0:01:08.7]} 19. Kb1 {[%clk 0:01:56.1]} 19...
a5 {[%clk 0:00:32.1]} 20. Bd5 {[%clk 0:01:45.5]} 20... dxe3 {[%clk 0:00:25.6]}
21. fxe3 {[%clk 0:01:46.4]} 21... Be6 {[%clk 0:00:23.3]} 22. Be4 {[%clk
0:01:36.7]} 22... d5 {[%clk 0:00:10.3]} 23. Bg6 {[%clk 0:01:36.5]} 23... Bf7
{[%clk 0:00:08.8]} 24. Qc2 {[%clk 0:01:22.7]} 24... b6 {[%clk 0:00:08]} 25. d4
{[%clk 0:01:21.4]} 25... Rxe3 {[%clk 0:00:04.6]} 26. Rhe1 {[%clk 0:01:19.3]}
26... Rxe1 {[%clk 0:00:02.6]} 27. Rxe1 {[%clk 0:01:20.2]} 1-0